[Event "10th Floripa Open 2024"]
[Site "Florianopolis"]
[Date "2024.01.28"]
[Round "9.9"]
[White "El Debs, Felipe de Cresce"]
[Black "Cunha, Lucas Aguiar"]
[Result "1-0"]
[ECO "D43"]
[WhiteElo "2527"]
[BlackElo "2230"]
[Annotator "TA"]
[PlyCount "79"]
[EventDate "2024.01.10"]
[EventType "swiss"]
[EventCountry "BRA"]
[SourceTitle "playchess.com"]
[Source "ChessBase"]
[SourceQuality "1"]
[TimeControl "5400+30"]

{[%evp 13,79,18,6,-5,9,-26,-25,-30,0,0,14,0,0,0,2,0,0,0,35,27,91,82,107,101,93,104,111,95,103,92,201,207,231,227,385,386,385,373,381,386,381,382,393,378,379,391,375,383,508,479,597,596,656,652,765,766,721,658,710,681,911,857,1527,1436,2747,2532,2429,2284]} 1. d4 {[%emt 0:00:06]} d5 {[%emt 0:00:53]} 2. c4 {[%emt 0:00:07]} c6 {[%emt 0:00:26]} 3. Nf3 {[%emt 0:00:19]} Nf6 {[%emt 0:00:06]} 4. Nc3 {[%emt 0:01:19]} e6 {[%emt 0:00:17]} 5. Qd3 {[%emt 0:02:43]} dxc4 {[%emt 0:07:15]} 6. Qxc4 {[%emt 0:00:06]} b5 {[%emt 0:00:08]} 7. Qd3 {[%emt 0:02:36]} a6 {[%emt 0:06:41]} 8. Bg5 {[%emt 0:01:47]} Nbd7 {[%emt 0:05:13]} 9. a4 {[%emt 0:10:44][%cal Ra4b5]} Bb7 {[%emt 0:02:22]} 10. e3 {[%emt 0:01:41] Schwarz hat minimalen Vorteil.} h6 {[%emt 0:02:03]} 11. Bxf6 {[%emt 0:00:11]} gxf6 {[%emt 0:01:38]} 12. Be2 {[%emt 0:01:25][%cal Ra4b5]} b4 {[%emt 0:02:06]} 13. Ne4 {[%emt 0:03:17]} f5 {[%emt 0:08:00]} 14. Ned2 {[%emt 0:01:38]} c5 {[%emt 0:01:38]} 15. O-O {[%emt 0:01:06]} Rg8 {[%emt 0:00:48]} 16. Rac1 {[%emt 0:13:03]} Bd6 {[%emt 0:07:23]} (16... cxd4 $11 {bleibt in der Remisbreite.} 17. exd4 h5) 17. Rfd1 {[%emt 0:56:52] Jetzt gehts bergab für Schwarz.} Bd5 {[%emt 0:05:31]} 18. e4 {[%emt 0:00:00]} fxe4 {[%emt 0:01:53]} 19. Nxe4 {[%emt 0:00:00]} Bf4 {[%emt 0:00:18]} 20. dxc5 {[%emt 0:00:00][%cal Oc5c6] Schwarz muss nun c6! beachten.} Bxc1 {[%emt 0:00:39]} 21. Rxc1 {[%emt 0:00:00]} Qc7 {[%emt 0:10:09] [#]} (21... Ke7 $16) 22. c6 $1 $18 {[%emt 0:00:00][%mdl 512]} Bxc6 {[%emt 0:16:10]} (22... Ke7 23. Qd2) 23. Qc4 {[%emt 0:00:00]} (23. Qd6 Qxd6 24. Nxd6+ Ke7 25. Rxc6 a5 $18) 23... Rc8 $2 {[%emt 0:06:13]} (23... Rg4 24. Nfd2 (24. Qxc6 $2 Qxc6 25. Rxc6 Rxe4 $19) (24. Nd6+ Qxd6 25. Qxg4 Bxa4 $14) 24... Rg8 (24... Ne5 $2 25. Qc5 $18)) 24. Qxb4 {[%emt 0:00:00] Und Nd6+ würde nun gewinnen.} Qb8 {[%emt 0:00:02]} 25. Nd6+ {[%emt 0:00:00] Ein dynamisches Springerpaar.} Kf8 {[%emt 0:00:05][%cal Be8f8,Bf8g7,Bg7g8][%mdl 32]} 26. Qa3 {[%emt 0:00:00] [#] Droht Matt per Nf5+.} (26. Nxc8+ $2 {ist das falsche Schlagen.} Qxb4 27. Rxc6 Qe4 $19 (27... Qxb2 $2 28. Bf1 $19) (27... Qxa4 $2 28. Rc7 $19)) ({Viel schwächer ist} 26. Qxb8 Rxb8 27. Rxc6 Rxb2 $18) 26... Kg7 {[%emt 0:01:09] ...Bxf3 ist eine echte Drohung.} 27. Nxc8 {[%emt 0:00:00]} (27. Bxa6 Rc7 $18) 27... Rxc8 {[%emt 0:00:12]} 28. Bxa6 {[%emt 0:00:00]} Bb7 {[%emt 0:00:22]} 29. Rxc8 {[%emt 0:00:00]} Qxc8 {[%emt 0:15:20]} 30. Bf1 {[%emt 0:00:00]} Kg8 {[%emt 0:00:00]} 31. a5 {[%emt 0:00:00][%cal Ba4a5,Ba5a6][%mdl 32] Weiß steht klar auf Gewinn.} Nf6 {[%emt 0:00:00]} 32. a6 {[%emt 0:00:00]} Ba8 {[%emt 0:00:00]} 33. b4 {[%emt 0:00:00][%cal Bb2b4,Bb4b5][%mdl 32]} Nd5 {[%emt 0:00:00]} 34. b5 {[%emt 0:00:00]} Qc7 {[%emt 0:00:00]} 35. Qa1 {[%emt 0:00:00]} Nb6 {[%emt 0:00:00]} 36. Qf6 {[%emt 0:00:00]} Nd7 {[%emt 0:00:00]} 37. Qxh6 {[%emt 0:00:00] Droht Bd3 und aus.} Bxf3 {[%emt 0:00:00]} 38. gxf3 {[%emt 0:00:00]} Nc5 {[%emt 0:00:00]} 39. Qg5+ {[%emt 0:00:00]} Kf8 {[%emt 0:00:00]} 40. h4 {[%emt 0:09:26] Gewichteter Fehlerwert: Weiß=0.06 (makellos) /Schwarz=0.35.  Fehler:       	---       	Schwarz=3     Ungenau:       	Weiß=1     	Schwarz=3     OK:         	Weiß=15    	Schwarz=7     Bester:       	Weiß=2     	Schwarz=3} 1-0

[Event "10th Floripa Open 2024"]
[Site "Florianopolis"]
[Date "2024.01.28"]
[Round "9.10"]
[White "Rodrigues, Edgar"]
[Black "Cuenca Jimenez, Jose Fernando"]
[Result "0-1"]
[ECO "B78"]
[WhiteElo "2233"]
[BlackElo "2514"]
[Annotator "TA"]
[PlyCount "60"]
[EventDate "2024.01.10"]
[EventType "swiss"]
[EventCountry "BRA"]
[SourceTitle "playchess.com"]
[Source "ChessBase"]
[SourceQuality "1"]
[TimeControl "5400+30"]

{[%evp 30,60,-13,-88,-86,-112,-95,-79,-73,-366,-345,-389,-434,-422,-425,-428,-406,-438,-453,-473,-464,-478,-497,-514,-467,-675,-696,-919,-1157,-1264,-1028,-1352,-1317]} 1. e4 {[%emt 0:01:11]} c5 {[%emt 0:00:56]} 2. Nf3 {[%emt 0:00:11]} d6 {[%emt 0:01:35]} 3. d4 {[%emt 0:00:07]} cxd4 {[%emt 0:00:09]} 4. Nxd4 {[%emt 0:00:07]} Nf6 {[%emt 0:00:07]} 5. Nc3 {[%emt 0:00:04]} g6 {[%emt 0:01:45]} 6. Be3 {[%emt 0:00:09]} Bg7 {[%emt 0:00:04]} 7. f3 {[%emt 0:00:06]} O-O {[%emt 0:00:32]} 8. Qd2 {[%emt 0:00:08]} Nc6 {[%emt 0:00:34][%cal Bb8c6,Bc6e5,Be5c4][%mdl 32]} 9. Bc4 {[%emt 0:00:08]} Bd7 {[%emt 0:01:11]} 10. O-O-O {[%emt 0:00:10]} Rc8 {[%emt 0:01:09]} 11. Bb3 {[%emt 0:00:09]} Ne5 {[%emt 0:01:38]} 12. h4 {[%emt 0:00:32]} h5 {[%emt 0:01:19]} 13. Bg5 {[%emt 0:00:15]} Rc5 {[%emt 0:00:47]} 14. g4 {[%emt 0:01:29]} hxg4 {[%emt 0:03:50]} 15. f4 {[%emt 0:00:37]} Nc4 {[%emt 0:01:31]} 16. Qe2 {[%emt 0:01:57]} (16. Qd3 $1 $11 b5 17. f5) 16... Na5 $17 {[%emt 0:00:27]} 17. h5 {[%emt 0:06:15] [#]} Rxg5 $1 {[%emt 0:02:20][%mdl 512]} 18. fxg5 {[%emt 0:01:06]} Nxh5 {[%emt 0:00:06] Hoping for ...Nxb3+. Black is better.} 19. Rxh5 $4 {[%emt 0:03:06][%mdl 8192] Loses the game.} gxh5 $19 {[%emt 0:03:39]} ({Much less strong is} 19... Nxb3+ 20. Nxb3 gxh5 21. Qh2 Bxc3 22. Qxh5 $19) 20. Qh2 {[%emt 0:02:22]} Nxb3+ {[%emt 0:54:33]} 21. Nxb3 {[%emt 0:01:47]} Bxc3 {[%emt 0:00:25]} 22. bxc3 {[%emt 0:02:51]} Kg7 {[%emt 0:00:01]} 23. e5 {[%emt 0:01:38]} Bf5 {[%emt 0:01:24] Black is clearly winning.} 24. Qf4 {[%emt 0:01:24]} Bg6 {[%emt 0:02:07]} 25. exd6 {[%emt 0:00:20]} exd6 {[%emt 0:00:11]} 26. Rxd6 {[%emt 0:00:19]} Qe7 {[%emt 0:00:23] ...Re8 would now be deadly.} 27. Nc5 {[%emt 0:04:32]} (27. Qd4+ $142 Kg8 28. Qf4) 27... Re8 {[%emt 0:02:23] ...Qe5 is the strong threat.} 28. Rd5 {[%emt 0:06:30]} Qe3+ {[%emt 0:01:24]} 29. Qxe3 {[%emt 0:00:11]} Rxe3 {[%emt 0:00:03]} 30. Kd2 {[%emt 0:01:16]} Re7 {[%emt 0:01:48] Weighted Error Value: White=1.23/Black=0.02 (flawless) .  Loses game:     	White=1     	---        Mistake:       	White=1     	---        Inaccurate:     	White=2     	---        OK:         	White=1     	Black=6      Best:        	---       	Black=1} 0-1

[Event "10th Floripa Open 2024"]
[Site "Florianopolis"]
[Date "2024.01.28"]
[Round "10.1"]
[White "Tari, Aryan"]
[Black "Do Valle Cardoso, Lucas"]
[Result "1/2-1/2"]
[ECO "C65"]
[WhiteElo "2623"]
[BlackElo "2392"]
[Annotator "TA"]
[PlyCount "64"]
[EventDate "2024.01.10"]
[EventType "swiss"]
[EventCountry "BRA"]
[SourceTitle "playchess.com"]
[Source "ChessBase"]
[SourceQuality "1"]
[TimeControl "5400+30"]

{[%evp 9,64,18,22,17,20,0,11,6,20,9,27,12,26,-6,0,-9,-11,-26,-17,-10,0,-20,19,-12,-1,-23,13,12,16,10,8,12,12,11,13,11,17,14,18,0,0,4,44,39,120,25,22,16,20,-21,-23,-16,-14,-9,-35,-158,-84]} 1. e4 {[%emt 0:01:49]} e5 {[%emt 0:00:32]} 2. Nf3 {[%emt 0:00:16]} Nc6 {[%emt 0:00:07]} 3. Bb5 {[%emt 0:00:12]} Nf6 {[%emt 0:00:41][%cal Bg8f6,Bf6d7,Bd7b8,Bb8c6][%mdl 32]} 4. d3 {[%emt 0:02:51]} Bc5 {[%emt 0:00:07]} 5. Bxc6 {[%emt 0:02:27]} dxc6 {[%emt 0:00:08]} 6. h3 {[%emt 0:00:22]} (6. Nxe5 $2 Qd4 7. Be3 Qxe5 $19) 6... Nd7 {[%emt 0:04:59]} 7. Be3 {[%emt 0:01:19]} Bd6 {[%emt 0:04:27]} 8. Nc3 {[%emt 0:02:15] The position is equal.} c5 {[%emt 0:01:25]} 9. Nd2 {[%emt 0:05:41]} Nb8 {[%emt 0:02:21]} 10. O-O {[%emt 0:06:47]} Nc6 {[%emt 0:00:56]} 11. Ne2 {[%emt 0:05:01]} O-O {[%emt 0:03:51]} 12. Ng3 {[%emt 0:04:18]} f6 {[%emt 0:04:54]} 13. a4 {[%emt 0:16:40]} Be6 {[%emt 0:03:47]} 14. Nc4 {[%emt 0:02:51]} Qd7 {[%emt 0:03:37]} 15. b3 {[%emt 0:02:14]} Rad8 {[%emt 0:02:26]} 16. Qd2 {[%emt 0:03:48]} Nd4 {[%emt 0:05:18]} 17. f3 {[%emt 0:02:40]} Rf7 {[%emt 0:03:21]} 18. Nxd6 {[%emt 0:07:27]} Qxd6 {[%emt 0:03:08]} 19. Rae1 {[%emt 0:04:01]} b6 {[%emt 0:04:33]} 20. f4 {[%emt 0:01:10]} exf4 {[%emt 0:08:28]} 21. Bxf4 {[%emt 0:00:02]} Qc6 {[%emt 0:00:45]} 22. Kh1 {[%emt 0:04:53]} f5 {[%emt 0:07:41]} 23. Be5 {[%emt 0:00:49]} Rdf8 {[%emt 0:10:29][%cal Bd8f8,Bf8f7,Bf7g7,Bg7g3][%mdl 32]} 24. Nh5 {[%emt 0:02:33] With the idea c3.} fxe4 {[%emt 0:03:06]} 25. Rxf7 {[%emt 0:00:08]} Rxf7 {[%emt 0:01:04]} 26. dxe4 {[%emt 0:02:41][%cal Oc2c3] c3! is the strong threat.} h6 {[%emt 0:09:02] [#]} (26... Bxh3 $1 $14 27. Bxd4 (27. gxh3 Nf3 $11) 27... Bg4) 27. Bxg7 {[%emt 0:11:01]} ({White should play} 27. Nxg7 $1 $16 Rxg7 28. Qxh6) 27... Rxg7 $11 {[%emt 0:00:18]} 28. Qxh6 {[%emt 0:00:04][%csl Gh5][%cal Rh6g7]} Nf5 {[%emt 0:01:07]} 29. Qf6 {[%emt 0:01:47] Chess con chili.} (29. exf5 $2 Qxg2#) ({But not} 29. Qd2 Ng3+ 30. Nxg3 Rxg3 31. Qd8+ Kg7 $15) (29. Qf4 $5 Rg6 30. Rf1 $15) 29... Ng3+ {[%emt 0:01:57]} 30. Nxg3 {[%emt 0:00:02]} Rxg3 {[%emt 0:00:04]} 31. Qd8+ {[%emt 0:02:06]} Kg7 {[%emt 0:00:24] Threatens to win with ...Qd6.} 32. Rf1 {[%emt 0:02:42] [#]} (32. Qe7+ $15 Kg6 33. Rd1) 32... Qd7 {[%emt 0:05:12] Weighted Error Value: White=0.21 (precise) /Black=0.12 (very precise) .  Mistake:       	White=2     	Black=2      Inaccurate:     	White=3     	Black=3      OK:         	White=5     	Black=6      Best:        	White=2     	Black=2} (32... Qxe4 $2 {too greedy.} 33. Qxc7+ $18) (32... Qd6 $142 $1 {[%cal Rd6d8]} 33. Qf6+ Kg8) 1/2-1/2

[Event "10th Floripa Open 2024"]
[Site "Florianopolis"]
[Date "2024.01.28"]
[Round "10.2"]
[White "Fier, Alexandr"]
[Black "Perez Gormaz, Matias"]
[Result "1-0"]
[ECO "A14"]
[WhiteElo "2549"]
[BlackElo "2388"]
[Annotator "TA"]
[PlyCount "93"]
[EventDate "2024.01.10"]
[EventType "swiss"]
[EventCountry "BRA"]
[SourceTitle "playchess.com"]
[Source "ChessBase"]
[SourceQuality "1"]
[TimeControl "5400+30"]

{[%evp 19,93,12,22,11,6,16,9,5,11,0,27,22,17,14,20,25,9,0,42,36,49,6,53,76,58,43,60,36,89,56,124,50,38,0,62,52,56,49,56,49,59,59,100,62,206,129,286,295,409,418,512,525,537,535,531,530,500,401,426,426,410,426,418,408,556,550,508,545,831,830,814,787,1016,964,1344,1558]} 1. Nf3 {[%emt 0:00:26]} Nf6 {[%emt 0:01:15]} 2. c4 {[%emt 0:00:05]} e6 {[%emt 0:02:46]} 3. e3 {[%emt 0:00:20]} b6 {[%emt 0:02:17]} 4. b3 {[%emt 0:02:02]} Bb7 {[%emt 0:00:14]} 5. Bb2 {[%emt 0:00:04]} c5 {[%emt 0:00:41]} 6. Nc3 {[%emt 0:00:19]} Be7 {[%emt 0:01:16]} 7. g3 {[%emt 0:01:01]} O-O {[%emt 0:05:44]} 8. Bg2 {[%emt 0:00:03]} d5 {[%emt 0:02:18]} 9. O-O {[%emt 0:00:06]} Nbd7 {[%emt 0:04:37]} 10. Qe2 {[%emt 0:00:12]} Rc8 {[%emt 0:10:40]} 11. Rad1 {[%emt 0:00:11]} Qc7 {[%emt 0:00:33]} 12. Nh4 {[%emt 0:00:05]} dxc4 {[%emt 0:07:20]} 13. bxc4 {[%emt 0:00:08] The position is equal.} a6 {[%emt 0:00:03]} 14. f4 {[%emt 0:00:18]} Rfd8 {[%emt 0:01:08]} 15. g4 {[%emt 0:02:17]} Ne8 {[%emt 0:01:00][%cal Bf6e8,Be8d6,Bd6f5,Bf5g3,Bg3f1][%mdl 32]} 16. g5 {[%emt 0:01:51]} Nd6 {[%emt 0:01:11]} 17. a4 {[%emt 0:09:42]} Bxg2 {[%emt 0:05:30]} 18. Nxg2 {[%emt 0:01:21]} Nf5 {[%emt 0:03:53]} 19. Qg4 {[%emt 0:01:57]} Qc6 {[%emt 0:05:19]} 20. h4 {[%emt 0:01:53]} h5 {[%emt 0:11:57]} 21. Qxh5 $14 {[%emt 0:04:17]} Ng3 {[%emt 0:01:32][%csl LRf1,LRh5]} 22. Qg4 {[%emt 0:00:03] Really sharp!} Nxf1 {[%emt 0:00:06]} 23. Rxf1 {[%emt 0:00:23]} f5 {[%emt 0:07:59]} (23... Nf8 $14) 24. Qe2 {[%emt 0:00:44][%mdl 1024] Black must now prevent e4. White has strong compensation.} Nf8 {[%emt 0:01:25]} (24... Nb8 $1 $14) 25. Ne1 {[%emt 0:00:17]} ({White should play} 25. e4 $16) 25... Rc7 {[%emt 0:02:26]} 26. Nf3 {[%emt 0:00:39]} Qd7 {[%emt 0:01:44]} ({Black should try} 26... Qe8 $11) 27. h5 {[%emt 0:18:06]} Qd3 {[%emt 0:01:53]} 28. Qxd3 {[%emt 0:01:20]} Rxd3 {[%emt 0:00:06]} 29. Kf2 {[%emt 0:00:01]} Rd8 {[%emt 0:04:18]} 30. Ke2 {[%emt 0:00:03]} Nd7 {[%emt 0:00:31]} 31. Rh1 {[%emt 0:00:51]} Kf7 {[%emt 0:12:21]} (31... Re8 $14) 32. Nd1 {[%emt 0:01:02]} Kg8 $2 {[%emt 0:01:27] [#] Loses the game.} (32... Rb7 $16 33. Bc3 Rg8) 33. h6 $1 $18 {[%emt 0:00:30]} Bf8 {[%emt 0:00:44]} 34. Nf2 {[%emt 0:01:32]} Rc6 {[%emt 0:00:43]} 35. Nd3 {[%emt 0:00:22]} gxh6 {[%emt 0:00:21]} 36. gxh6 {[%emt 0:00:04] White wants to mate with h7+.} Kh7 {[%emt 0:00:39]} 37. Ng5+ {[%emt 0:00:59]} Kg6 {[%emt 0:00:05]} 38. h7 {[%emt 0:00:03][%cal Rh7h8] [#]} Bg7 {[%emt 0:00:06]} 39. h8=Q {[%emt 0:02:50]} Rxh8 {[%emt 0:00:06]} 40. Rxh8 {[%emt 0:00:03]} Bxh8 {[%emt 0:00:06]} 41. Bxh8 {[%emt 0:00:02] And now Ne5+ would win.} Rc8 {[%emt 0:02:05]} 42. Ne5+ {[%emt 0:00:05] White is clearly winning.} Nxe5 {[%emt 0:00:08]} 43. Bxe5 {[%emt 0:00:03]} Rc6 {[%emt 0:00:54]} 44. Kd3 {[%emt 0:00:25]} Kh5 {[%emt 0:00:08]} 45. Kc3 {[%emt 0:00:05]} Kg4 {[%emt 0:00:19]} 46. d4 {[%emt 0:00:33]} Rc8 {[%emt 0:00:38]} 47. Nxe6 {[%emt 0:00:20] Weighted Error Value: White=0.16 (very precise) /Black=0.42.  Mistake:       	White=1     	Black=6      Inaccurate:     	White=5     	Black=6      OK:         	White=11    	Black=14     Best:        	White=1     	Black=3      Strong:       	White=1     	---} 1-0

[Event "10th Floripa Open 2024"]
[Site "Florianopolis"]
[Date "2024.01.28"]
[Round "10.3"]
[White "Salinas Herrera, Pablo"]
[Black "Perdomo, Leandro"]
[Result "1-0"]
[ECO "C77"]
[WhiteElo "2477"]
[BlackElo "2382"]
[Annotator "RC"]
[PlyCount "71"]
[EventDate "2024.01.10"]
[EventType "swiss"]
[EventCountry "BRA"]
[SourceTitle "playchess.com"]
[Source "ChessBase"]
[SourceQuality "1"]
[TimeControl "5400+30"]

1. e4 {[%emt 0:03:40]} e5 {[%emt 0:00:02]} 2. Nf3 {[%emt 0:00:19]} Nc6 {[%emt 0:00:02]} 3. Bb5 {[%emt 0:00:09]} a6 {[%emt 0:00:02]} 4. Ba4 {[%emt 0:00:07]} Nf6 {[%emt 0:00:02]} 5. Nc3 {[%emt 0:01:19]} d6 {[%emt 0:03:29]} 6. Bxc6+ {[%emt 0:00:11]} bxc6 {[%emt 0:00:02]} 7. d4 {[%emt 0:00:08]} Nd7 {[%emt 0:01:17]} 8. O-O {[%emt 0:00:34]} a5 {[%emt 0:05:48]} 9. b3 {[%emt 0:00:05]} Be7 {[%emt 0:14:51]} 10. Na4 {[%emt 0:04:53]} O-O {[%emt 0:08:19]} 11. Bb2 {[%emt 0:07:27]} exd4 {[%emt 0:20:40]} 12. Nxd4 {[%emt 0:11:19]} Bb7 {[%emt 0:00:02]} 13. Qg4 {[%emt 0:06:00]} Ne5 {[%emt 0:23:13]} 14. Qg3 {[%emt 0:03:48]} Bh4 {[%emt 0:00:03]} 15. Qe3 {[%emt 0:10:22]} Bf6 {[%emt 0:01:17]} 16. Rad1 {[%emt 0:02:18]} Ng6 {[%emt 0:01:23]} 17. Bc3 {[%emt 0:09:20]} Re8 {[%emt 0:07:02]} 18. Nf5 {[%emt 0:02:12]} Bc8 {[%emt 0:00:02]} 19. Ng3 {[%emt 0:01:15]} Ba6 {[%emt 0:03:23]} 20. Bxf6 {[%emt 0:08:59]} Qxf6 {[%emt 0:00:03]} 21. c4 {[%emt 0:00:07]} c5 {[%emt 0:03:01]} 22. f4 {[%emt 0:01:34]} Bb7 {[%emt 0:00:12]} 23. Nc3 {[%emt 0:05:11]} Bc6 {[%emt 0:00:18]} 24. Rd3 {[%emt 0:01:19]} h6 {[%emt 0:02:14]} 25. Qd2 {[%emt 0:00:32]} Rab8 {[%emt 0:05:03]} 26. Nh5 {[%emt 0:00:43]} Qh4 {[%emt 0:00:52]} 27. Rh3 {[%emt 0:00:05]} Qg4 {[%emt 0:00:36]} 28. f5 {[%emt 0:00:06]} Re5 {[%emt 0:00:35]} 29. Nxg7 {[%emt 0:01:58]} Bxe4 {[%emt 0:00:21]} 30. Rg3 {[%emt 0:00:25]} Qh4 {[%emt 0:00:15]} 31. Nxe4 {[%emt 0:00:27]} Qxe4 {[%emt 0:00:53]} 32. fxg6 {[%emt 0:00:12]} fxg6 {[%emt 0:00:15]} 33. Qxh6 {[%emt 0:00:40]} Qd4+ {[%emt 0:00:02]} 34. Kh1 {[%emt 0:00:06]} Qf2 {[%emt 0:01:08]} 35. Rf3 {[%emt 0:00:13]} Qc2 {[%emt 0:00:41]} 36. Ne6 {[%emt 0:00:15]} 1-0

[Event "10th Floripa Open 2024"]
[Site "Florianopolis"]
[Date "2024.01.28"]
[Round "10.4"]
[White "Hoffman, Alejandro"]
[Black "El Debs, Felipe de Cresce"]
[Result "0-1"]
[ECO "E91"]
[WhiteElo "2358"]
[BlackElo "2527"]
[Annotator "RC"]
[PlyCount "147"]
[EventDate "2024.01.10"]
[EventType "swiss"]
[EventCountry "BRA"]
[SourceTitle "playchess.com"]
[Source "ChessBase"]
[SourceQuality "1"]
[TimeControl "5400+30"]

1. d4 {[%emt 0:00:04]} Nf6 {[%emt 0:00:09]} 2. c4 {[%emt 0:00:12]} c5 {[%emt 0:00:09]} 3. d5 {[%emt 0:00:27]} e6 {[%emt 0:00:11]} 4. Nc3 {[%emt 0:00:13]} d6 {[%emt 0:00:12]} 5. e4 {[%emt 0:02:25]} g6 {[%emt 0:00:29]} 6. Nf3 {[%emt 0:08:25]} Bg7 {[%emt 0:00:47]} 7. h3 {[%emt 0:06:02]} O-O {[%emt 0:01:11]} 8. Be2 {[%emt 0:00:11]} Re8 {[%emt 0:03:50]} 9. O-O {[%emt 0:01:08]} exd5 {[%emt 0:06:24]} 10. exd5 {[%emt 0:00:08]} Bf5 {[%emt 0:00:12]} 11. Bd3 {[%emt 0:01:40]} Ne4 {[%emt 0:01:42]} 12. Bxe4 {[%emt 0:02:21]} Bxe4 {[%emt 0:03:57]} 13. Nxe4 {[%emt 0:00:26]} Rxe4 {[%emt 0:00:08]} 14. Qc2 {[%emt 0:01:01]} Re8 {[%emt 0:00:58]} 15. Bd2 {[%emt 0:02:54]} Nd7 {[%emt 0:01:41]} 16. Bc3 {[%emt 0:03:38]} Ne5 {[%emt 0:03:16]} 17. Nxe5 {[%emt 0:00:13]} Bxe5 {[%emt 0:00:21]} 18. Bxe5 {[%emt 0:10:14]} Rxe5 {[%emt 0:00:05]} 19. f4 {[%emt 0:01:29]} Re3 {[%emt 0:04:21]} 20. f5 {[%emt 0:02:28]} Qe7 {[%emt 0:03:48]} 21. fxg6 {[%emt 0:02:45]} hxg6 {[%emt 0:00:24]} 22. Rf2 {[%emt 0:00:07]} Re8 {[%emt 0:01:36]} 23. Raf1 {[%emt 0:00:07]} f5 {[%emt 0:00:25]} 24. b3 {[%emt 0:09:45]} b6 {[%emt 0:08:30]} 25. Qb2 {[%emt 0:00:16]} Qg5 {[%emt 0:00:31]} 26. Kh1 {[%emt 0:02:00]} R8e7 {[%emt 0:05:40]} 27. Qd2 {[%emt 0:00:38]} Qg3 {[%emt 0:00:56]} 28. Kg1 {[%emt 0:00:08]} R7e4 {[%emt 0:06:18]} 29. Rf3 {[%emt 0:05:51]} Qe5 {[%emt 0:01:28]} 30. Rxe3 {[%emt 0:00:44]} Rxe3 {[%emt 0:00:04]} 31. Kf2 {[%emt 0:06:23]} Qf4+ {[%emt 0:06:20]} 32. Kg1 {[%emt 0:00:07]} Qe4 {[%emt 0:00:04]} 33. Kf2 {[%emt 0:05:46]} Qf4+ {[%emt 0:09:42]} 34. Kg1 {[%emt 0:00:06]} Qe5 {[%emt 0:00:09]} 35. Kf2 {[%emt 0:00:07]} Qg3+ {[%emt 0:00:05]} 36. Kg1 {[%emt 0:00:07]} Re4 {[%emt 0:02:00]} 37. Rf3 {[%emt 0:01:44]} Qe5 {[%emt 0:00:32]} 38. Qh6 {[%emt 0:07:41]} Kf7 {[%emt 0:17:25]} 39. Qh7+ {[%emt 0:00:25]} Kf6 {[%emt 0:00:09]} 40. Qh8+ {[%emt 0:03:42]} Kg5 {[%emt 0:00:45]} 41. Qxe5 {[%emt 0:00:50]} dxe5 {[%emt 0:00:27]} 42. Kf2 {[%emt 0:00:08]} Rd4 {[%emt 0:00:20]} 43. Ke2 {[%emt 0:01:25]} e4 {[%emt 0:00:39]} 44. Rg3+ {[%emt 0:00:18]} Kf6 {[%emt 0:00:35]} 45. h4 {[%emt 0:00:22]} a6 {[%emt 0:01:34]} 46. a4 {[%emt 0:02:52]} b5 {[%emt 0:13:01]} 47. Rc3 {[%emt 0:06:15]} bxa4 {[%emt 0:00:00]} 48. bxa4 {[%emt 0:00:03]} f4 {[%emt 0:00:00]} 49. Rc2 {[%emt 0:02:20]} Ke5 {[%emt 0:00:00]} 50. Rd2 {[%emt 0:01:47]} a5 {[%emt 0:00:00]} 51. Rxd4 {[%emt 0:00:36]} cxd4 {[%emt 0:00:00]} 52. Kd2 {[%emt 0:00:15]} Kd6 {[%emt 0:00:00]} 53. Ke2 {[%emt 0:00:05]} Kc5 {[%emt 0:00:00]} 54. Kd2 {[%emt 0:00:08]} Kd6 {[%emt 0:01:43]} 55. Ke2 {[%emt 0:00:05]} Ke5 {[%emt 0:00:46]} 56. Kd2 {[%emt 0:00:07]} f3 {[%emt 0:01:26]} 57. gxf3 {[%emt 0:00:05]} exf3 {[%emt 0:00:02]} 58. Kd3 {[%emt 0:00:17]} Kf4 {[%emt 0:00:36]} 59. d6 {[%emt 0:00:10]} Kg3 {[%emt 0:00:03]} 60. d7 {[%emt 0:00:27]} f2 {[%emt 0:00:02]} 61. d8=Q {[%emt 0:00:21]} f1=Q+ {[%emt 0:02:52]} 62. Kd2 {[%emt 0:05:06]} Qf2+ {[%emt 0:00:00]} 63. Kd1 {[%emt 0:00:06]} Qf3+ {[%emt 0:00:00]} 64. Kd2 {[%emt 0:00:32]} Qc3+ {[%emt 0:00:00]} 65. Kd1 {[%emt 0:00:06]} Qb3+ {[%emt 0:00:00]} 66. Kd2 {[%emt 0:00:07]} Qb4+ {[%emt 0:00:00]} 67. Kd3 {[%emt 0:01:55]} Qc3+ {[%emt 0:00:00]} 68. Ke4 {[%emt 0:00:06]} Qe3+ {[%emt 0:00:00]} 69. Kd5 {[%emt 0:00:04]} d3 {[%emt 0:00:00]} 70. Qd6+ {[%emt 0:01:13]} Kg2 {[%emt 0:01:51]} 71. c5 {[%emt 0:02:31]} d2 {[%emt 0:00:11]} 72. Qxg6+ {[%emt 0:00:06]} Kf2 {[%emt 0:00:29]} 73. Qc2 {[%emt 0:01:11]} Qe2 {[%emt 0:00:32]} 74. Kd4 {[%emt 0:01:23]} 0-1